fUST/lending_fUST_20250221
["ID","MTS","AMOUNT","RATE_DAILY","PERIOD"]
[353858673,1740097846731,-500.0,0.00014173,2]
[353858674,1740097846741,-500.0,0.00014173,2]
[353858675,1740097846751,-500.0,0.00014173,2]
[353858676,1740097846760,-170.82861777,0.00014173,2]
[353858677,1740097846769,-500.0,0.00014173,2]
[353858678,1740097846778,-909.36019526,0.00014173,2]
[353858679,1740097846787,-500.0,0.00014191,2]
[353858680,1740097846796,-512.02,0.00014191,2]
[353858681,1740097846806,-220.53,0.00014191,2]
[353858682,1740097846815,-500.0,0.00014191,2]
[353858683,1740097846827,-500.0,0.00014191,2]
[353858684,1740097846842,-720.25,0.00014191,2]
[353858685,1740097846852,-924.56,0.00014191,2]
[353858686,1740097846861,-500.0,0.00014191,2]
[353858687,1740097846871,-608.05,0.00014191,2]
[353858688,1740097846880,-659.25,0.00014191,2]
[353858689,1740097846889,-1112.77,0.00014191,2]
[353858690,1740097846899,-620.25,0.00014191,2]
[353858691,1740097846909,-575.32,0.00014191,2]
[353858692,1740097846919,-500.0,0.00014191,2]
[353858693,1740097846928,-1226.4,0.00014191,2]
[353858694,1740097846937,-500.0,0.00014191,2]
[353858695,1740097846947,-500.0,0.00014191,2]
[353858696,1740097846956,-631.47,0.00014191,2]
[353858697,1740097846966,-616.91,0.00014191,2]
[353858698,1740097846975,-500.0,0.00014191,2]
[353858699,1740097846984,-757.01,0.00014191,2]
[353858700,1740097846993,-612.09,0.00014191,2]
[353858701,1740097847003,-1173.26,0.00014191,2]
[353858702,1740097847012,-500.0,0.00014191,2]
[353858703,1740097847022,-571.2,0.00014191,2]
[353858704,1740097847031,-500.0,0.00014191,2]
[353858705,1740097847039,-863.93,0.00014191,2]
[353858706,1740097847048,-500.0,0.00014191,2]
[353858707,1740097847056,-500.0,0.00014191,2]
[353858708,1740097847066,-500.0,0.00014191,2]
[353858709,1740097847076,-773.51,0.00014191,2]
[353858710,1740097847086,-500.0,0.00014191,2]
[353858711,1740097847095,-500.0,0.00014191,2]
[353858712,1740097847103,-563.79,0.00014191,2]
[353858713,1740097847112,-500.0,0.00014191,2]
[353858714,1740097847121,-870.26,0.00014191,2]
[353858715,1740097847129,-500.0,0.00014191,2]
[353858716,1740097847138,-500.0,0.00014191,2]
[353858717,1740097847147,-500.0,0.00014191,2]
[353858718,1740097847156,-500.0,0.00014191,2]
[353858719,1740097847166,-500.0,0.00014191,2]
[353858720,1740097847175,-1000.0,0.00014191,2]
[353858721,1740097847184,-2965.2,0.00014191,2]
[353858722,1740097847194,-500.0,0.00014191,2]
[353858723,1740097847203,-7407.22,0.00014191,2]
[353858724,1740097847212,-1424.63,0.00014191,2]
[353858725,1740097847222,-1126.5,0.00014191,2]
[353858726,1740097847232,-1088.81,0.00014191,2]
[353858727,1740097847242,-3319.91,0.00014191,2]
[353858728,1740097847252,-13071.21,0.00014191,2]
[353858729,1740097847261,-500.0,0.00014191,2]
[353858730,1740097847270,-500.0,0.00014191,2]
[353858731,1740097847279,-36691.61,0.00014191,2]
[353858732,1740097847288,-757.95,0.00014191,2]
[353858733,1740097847298,-2493.87,0.00014191,2]
[353858734,1740097847308,-1170.19,0.00014191,2]
[353858735,1740097847321,-1893.62,0.00014191,2]
[353858736,1740097847333,-1493.72,0.00014191,2]
[353858737,1740097847347,-3206.01,0.00014191,2]
[353858738,1740097847359,-619.03,0.00014191,2]
[353858739,1740097847371,-1288.47,0.00014191,2]
[353858740,1740097847381,-6326.14,0.00014191,2]
[353858741,1740097847390,-1250.47,0.00014191,2]
[353858742,1740097847399,-500.0,0.00014191,2]
[353858743,1740097847411,-530.98,0.00014191,2]
[353858744,1740097847429,-500.0,0.00014191,2]
[353858745,1740097847438,-3591.47,0.00014191,2]
[353858746,1740097847447,-500.0,0.00014191,2]
[353858747,1740097847457,-1996.0,0.00014191,2]
[353858748,1740097847468,-3522.52,0.00014191,2]
[353858749,1740097847481,-584.09,0.00014191,2]
[353858750,1740097847496,-1282.81,0.00014191,2]
[353858751,1740097847510,-500.0,0.00014191,2]
[353858752,1740097847522,-682.12,0.00014191,2]
[353858753,1740097847533,-1084.12,0.00014191,2]
[353858754,1740097847546,-2053.02,0.00014191,2]
[353858755,1740097847556,-500.0,0.00014191,2]
[353858756,1740097847565,-855.35,0.00014191,2]
[353858757,1740097847577,-657.23,0.00014191,2]
[353858758,1740097847589,-2085.88,0.00014191,2]
[353858759,1740097847598,-2400.28,0.00014191,2]
[353858760,1740097847611,-550.36,0.00014191,2]
[353858761,1740097847620,-500.0,0.00014191,2]
[353858762,1740097847633,-755.6,0.00014191,2]
[353858763,1740097847644,-500.0,0.00014191,2]
[353858764,1740097847653,-2528.55,0.00014191,2]
[353858765,1740097847663,-5873.51,0.00014191,2]
[353858766,1740097847672,-1871.42,0.00014191,2]
[353858767,1740097847681,-17350.12,0.00014191,2]
[353858768,1740097847690,-500.0,0.00014191,2]
[353858769,1740097847700,-873.49,0.00014191,2]
[353858770,1740097847709,-500.0,0.00014191,2]
[353858771,1740097847718,-500.0,0.00014191,2]
[353858772,1740097847727,-500.0,0.00014191,2]
[353858773,1740097847736,-567.85,0.00014191,2]
[353858774,1740097847746,-500.0,0.00014191,2]
[353858775,1740097847755,-2112.09,0.00014191,2]
[353858776,1740097847764,-500.0,0.00014191,2]
[353858777,1740097847774,-528.95,0.00014191,2]
[353858778,1740097847783,-2172.75,0.00014191,2]
[353858779,1740097847793,-500.0,0.00014191,2]
[353858780,1740097847802,-1606.58,0.00014191,2]
[353858781,1740097847812,-151.0,0.000142,2]
[353858782,1740097847821,-151.0,0.000142,2]
[353858783,1740097847833,-420.0,0.00014256,2]
[353858784,1740097847842,-500.0,0.00014273,2]
[353858785,1740097847851,-512.02,0.00014273,2]
[353858786,1740097847861,-500.0,0.00014273,2]
[353858787,1740097847874,-500.0,0.00014273,2]
[353858788,1740097847883,-720.25,0.00014273,2]
[353858789,1740097847892,-924.56,0.00014273,2]
[353858790,1740097847901,-500.0,0.00014273,2]
[353858791,1740097847912,-608.05,0.00014273,2]
[353858792,1740097847921,-659.25,0.00014273,2]
[353858793,1740097847931,-1112.77,0.00014273,2]
[353858794,1740097847940,-620.25,0.00014273,2]
[353858795,1740097847949,-575.32,0.00014273,2]
[353858796,1740097847958,-500.0,0.00014273,2]
[353858797,1740097847968,-1226.4,0.00014273,2]
[353858798,1740097847977,-500.0,0.00014273,2]
[353858799,1740097847986,-500.0,0.00014273,2]
[353858800,1740097847995,-631.47,0.00014273,2]
[353858801,1740097848005,-616.91,0.00014273,2]
[353858802,1740097848015,-500.0,0.00014273,2]
[353858803,1740097848024,-757.01,0.00014273,2]
[353858804,1740097848035,-612.09,0.00014273,2]
[353858805,1740097848044,-1173.26,0.00014273,2]
[353858806,1740097848054,-500.0,0.00014273,2]
[353858807,1740097848063,-571.2,0.00014273,2]
[353858808,1740097848073,-500.0,0.00014273,2]
[353858809,1740097848082,-863.93,0.00014273,2]
[353858810,1740097848092,-500.0,0.00014273,2]
[353858811,1740097848101,-500.0,0.00014273,2]
[353858812,1740097848111,-500.0,0.00014273,2]
[353858813,1740097848121,-773.51,0.00014273,2]
[353858814,1740097848130,-500.0,0.00014273,2]
[353858815,1740097848139,-500.0,0.00014273,2]
[353858816,1740097848148,-563.79,0.00014273,2]
[353858817,1740097848158,-500.0,0.00014273,2]
[353858818,1740097848167,-870.26,0.00014273,2]
[353858819,1740097848176,-500.0,0.00014273,2]
[353858820,1740097848185,-500.0,0.00014273,2]
[353858821,1740097848195,-500.0,0.00014273,2]
[353858822,1740097848204,-500.0,0.00014273,2]
[353858823,1740097848214,-500.0,0.00014273,2]
[353858824,1740097848224,-358.92,0.00014273,2]
[353858825,1740097848233,-2965.2,0.00014273,2]
[353858826,1740097848243,-500.0,0.00014273,2]
[353858827,1740097848252,-7407.22,0.00014273,2]
[353858828,1740097848261,-1424.63,0.00014273,2]
[353858829,1740097848272,-1126.5,0.00014273,2]
[353858830,1740097848282,-1088.81,0.00014273,2]
[353858831,1740097848291,-3319.91,0.00014273,2]
[353858832,1740097848301,-13071.21,0.00014273,2]
[353858833,1740097848310,-500.0,0.00014273,2]
[353858834,1740097848319,-500.0,0.00014273,2]
[353858835,1740097848329,-36691.61,0.00014273,2]
[353858836,1740097848339,-757.95,0.00014273,2]
[353858837,1740097848348,-2493.87,0.00014273,2]
[353858838,1740097848358,-1170.19,0.00014273,2]
[353858839,1740097848460,-1893.62,0.00014273,2]
[353858840,1740097848470,-1493.72,0.00014273,2]
[353858841,1740097848480,-3206.01,0.00014273,2]
[353858842,1740097848489,-619.03,0.00014273,2]
[353858843,1740097848499,-1288.47,0.00014273,2]
[353858844,1740097848509,-6326.14,0.00014273,2]
[353858845,1740097848521,-1250.47,0.00014273,2]
[353858846,1740097848530,-500.0,0.00014273,2]
[353858847,1740097848539,-530.98,0.00014273,2]
[353858848,1740097848549,-500.0,0.00014273,2]
[353858849,1740097848559,-3591.47,0.00014273,2]
[353858850,1740097848569,-500.0,0.00014273,2]
[353858851,1740097848579,-1996.0,0.00014273,2]
[353858852,1740097848589,-3522.52,0.00014273,2]
[353858853,1740097848598,-584.09,0.00014273,2]
[353858854,1740097848608,-1282.81,0.00014273,2]
[353858855,1740097848617,-500.0,0.00014273,2]
[353858856,1740097848627,-682.12,0.00014273,2]
[353858857,1740097848636,-1084.12,0.00014273,2]
[353858858,1740097848645,-2053.02,0.00014273,2]
[353858859,1740097848655,-500.0,0.00014273,2]
[353858860,1740097848665,-657.23,0.00014273,2]
[353858861,1740097848675,-855.35,0.00014273,2]
[353858862,1740097848685,-2085.88,0.00014273,2]
[353858863,1740097848695,-2400.28,0.00014273,2]
[353858864,1740097848704,-550.36,0.00014273,2]
[353858865,1740097848713,-500.0,0.00014273,2]
[353858866,1740097848723,-755.6,0.00014273,2]
[353858867,1740097848732,-500.0,0.00014273,2]
[353858868,1740097848742,-2528.55,0.00014273,2]
[353858869,1740097848752,-5873.51,0.00014273,2]
[353858870,1740097848762,-1871.42,0.00014273,2]
[353858871,1740097848772,-17350.12,0.00014273,2]
[353858872,1740097848782,-500.0,0.00014273,2]
[353858873,1740097848792,-873.49,0.00014273,2]
[353858874,1740097848801,-500.0,0.00014273,2]
[353858875,1740097848810,-500.0,0.00014273,2]
[353858876,1740097848820,-500.0,0.00014273,2]
[353858877,1740097848833,-567.85,0.00014273,2]
[353858878,1740097848843,-500.0,0.00014273,2]
[353858879,1740097848852,-2112.09,0.00014273,2]
[353858880,1740097848861,-500.0,0.00014273,2]
[353858881,1740097848873,-528.95,0.00014273,2]
[353858882,1740097848882,-2172.75,0.00014273,2]
[353858883,1740097848891,-500.0,0.00014273,2]
[353858884,1740097848902,-1606.58,0.00014273,2]
[353858885,1740097848912,-151.0,0.000143,2]
[353858886,1740097848921,-168.26106217,0.00014301,2]
[353858887,1740097848930,-418.80551456,0.00014302,2]
[353858888,1740097848940,-528.422,0.00014327,2]
[353858889,1740097848949,-500.0,0.00014356,2]
[353858890,1740097848958,-512.02,0.00014356,2]
[353858891,1740097848967,-500.0,0.00014356,2]
[353858892,1740097848977,-500.0,0.00014356,2]
[353858893,1740097848986,-720.25,0.00014356,2]
[353858894,1740097848996,-924.56,0.00014356,2]
[353858895,1740097849006,-500.0,0.00014356,2]
[353858896,1740097849016,-608.05,0.00014356,2]
[353858897,1740097849025,-659.25,0.00014356,2]
[353858898,1740097849035,-1112.77,0.00014356,2]
[353858899,1740097849045,-620.25,0.00014356,2]
[353858900,1740097849055,-575.32,0.00014356,2]
[353858901,1740097849064,-500.0,0.00014356,2]
[353858902,1740097849074,-1226.4,0.00014356,2]
[353858903,1740097849085,-500.0,0.00014356,2]
[353858904,1740097849095,-500.0,0.00014356,2]
[353858905,1740097849104,-631.47,0.00014356,2]
[353858906,1740097849114,-616.91,0.00014356,2]
[353858907,1740097849125,-500.0,0.00014356,2]
[353858908,1740097849135,-757.01,0.00014356,2]
[353858909,1740097849145,-612.09,0.00014356,2]
[353858910,1740097849155,-1173.26,0.00014356,2]
[353858911,1740097849165,-500.0,0.00014356,2]
[353858912,1740097849175,-571.2,0.00014356,2]
[353858913,1740097849184,-500.0,0.00014356,2]
[353858914,1740097849194,-863.93,0.00014356,2]
[353858915,1740097849203,-500.0,0.00014356,2]
[353858916,1740097849214,-500.0,0.00014356,2]
[353858917,1740097849223,-500.0,0.00014356,2]
[353858918,1740097849233,-773.51,0.00014356,2]
[353858919,1740097849243,-500.0,0.00014356,2]
[353858920,1740097849251,-500.0,0.00014356,2]
[353858921,1740097849260,-563.79,0.00014356,2]
[353858922,1740097849270,-500.0,0.00014356,2]
[353858923,1740097849281,-870.26,0.00014356,2]
[353858924,1740097849290,-151.0,0.00014356,2]
[353858925,1740097849300,-500.0,0.00014356,2]
[353858926,1740097849311,-500.0,0.00014356,2]
[353858927,1740097849320,-500.0,0.00014356,2]
[353858928,1740097849330,-500.0,0.00014356,2]
[353858929,1740097849340,-500.0,0.00014356,2]
[353858930,1740097849350,-2965.2,0.00014356,2]
[353858931,1740097849360,-500.0,0.00014356,2]
[353858932,1740097849370,-152.137845,0.00014356,2]
[353858933,1740097849380,-7407.22,0.00014356,2]
[353858934,1740097849390,-1424.63,0.00014356,2]
[353858935,1740097849400,-151.0,0.00014356,2]
[353858936,1740097849410,-1126.5,0.00014356,2]
[353858937,1740097849420,-1088.81,0.00014356,2]
[353858938,1740097849430,-3319.91,0.00014356,2]
[353858939,1740097849439,-13071.21,0.00014356,2]
[353858940,1740097849449,-500.0,0.00014356,2]
[353858941,1740097849458,-500.0,0.00014356,2]
[353858942,1740097849469,-36691.61,0.00014356,2]
[353858943,1740097849479,-757.95,0.00014356,2]
[353858944,1740097849489,-2493.87,0.00014356,2]
[353858945,1740097849499,-1170.19,0.00014356,2]
[353858946,1740097849508,-1893.62,0.00014356,2]
[353858947,1740097849518,-1493.72,0.00014356,2]
[353858948,1740097849528,-151.0,0.00014356,2]
[353858949,1740097849538,-3206.01,0.00014356,2]
[353858950,1740097849547,-619.03,0.00014356,2]
[353858951,1740097849557,-1288.47,0.00014356,2]
[353858952,1740097849567,-6326.14,0.00014356,2]
[353858953,1740097849577,-1250.47,0.00014356,2]
[353858954,1740097849588,-500.0,0.00014356,2]
[353858955,1740097849598,-530.98,0.00014356,2]
[353858956,1740097849607,-500.0,0.00014356,2]
[353858957,1740097849617,-3591.47,0.00014356,2]
[353858958,1740097849627,-500.0,0.00014356,2]
[353858959,1740097849636,-151.0,0.00014356,2]
[353858960,1740097849646,-151.0,0.00014356,2]
[353858961,1740097849656,-1996.0,0.00014356,2]
[353858962,1740097849666,-3522.52,0.00014356,2]
[353858963,1740097849676,-584.09,0.00014356,2]
[353858964,1740097849686,-1282.81,0.00014356,2]
[353858965,1740097849696,-500.0,0.00014356,2]
[353858966,1740097849706,-682.12,0.00014356,2]
[353858967,1740097849715,-1084.12,0.00014356,2]
[353858968,1740097849725,-2053.02,0.00014356,2]
[353858969,1740097849734,-500.0,0.00014356,2]
[353858970,1740097849744,-657.23,0.00014356,2]
[353858971,1740097849754,-855.35,0.00014356,2]
[353858972,1740097849764,-2085.88,0.00014356,2]
[353858973,1740097849774,-2400.28,0.00014356,2]
[353858974,1740097849784,-151.0,0.00014356,2]
[353858975,1740097849794,-550.36,0.00014356,2]
[353858976,1740097849804,-158.866005,0.00014356,2]
[353858977,1740097849814,-500.0,0.00014356,2]
[353858978,1740097849825,-151.0,0.00014356,2]
[353858979,1740097849837,-755.6,0.00014356,2]
[353858980,1740097849847,-500.0,0.00014356,2]
[353858981,1740097849857,-2528.55,0.00014356,2]
[353858982,1740097849867,-5873.51,0.00014356,2]
[353858983,1740097849876,-1871.42,0.00014356,2]
[353858984,1740097849885,-224.336594,0.00014356,2]
[353858985,1740097849895,-224.336594,0.00014356,2]
[353858986,1740097849905,-17350.12,0.00014356,2]
[353858987,1740097849914,-500.0,0.00014356,2]
[353858988,1740097849924,-151.323662,0.00014356,2]
[353858989,1740097849933,-873.49,0.00014356,2]
[353858990,1740097849944,-500.0,0.00014356,2]
[353858991,1740097849953,-500.0,0.00014356,2]
[353858992,1740097849964,-151.0,0.00014356,2]
[353858993,1740097849973,-500.0,0.00014356,2]
[353858994,1740097849984,-567.85,0.00014356,2]
[353858995,1740097849995,-419.5524476,0.00014356,2]
[353858996,1740097850004,-2112.09,0.00014356,2]
[353858997,1740097850013,-500.0,0.00014356,2]
[353858998,1740097850023,-528.95,0.00014356,2]
[353858999,1740097850033,-2172.75,0.00014356,2]
[353859000,1740097850042,-500.0,0.00014356,2]
[353859001,1740097850051,-1606.58,0.00014356,2]
[353859002,1740097850061,-2902.79,0.000144,2]
[353859003,1740097850071,-58522.24623059,0.0001443,2]
[353859004,1740097850080,-500.0,0.00014438,2]
[353859005,1740097850090,-512.02,0.00014438,2]
[353859006,1740097850100,-500.0,0.00014438,2]
[353859007,1740097850109,-500.0,0.00014438,2]
[353859008,1740097850119,-720.25,0.00014438,2]
[353859009,1740097850128,-924.56,0.00014438,2]
[353859010,1740097850138,-500.0,0.00014438,2]
[353859011,1740097850148,-608.05,0.00014438,2]
[353859012,1740097850157,-659.25,0.00014438,2]
[353859013,1740097850167,-1112.77,0.00014438,2]
[353859014,1740097850176,-620.25,0.00014438,2]
[353859015,1740097850185,-575.32,0.00014438,2]
[353859016,1740097850195,-500.0,0.00014438,2]
[353859017,1740097850205,-196.012323,0.00014438,2]
[353859018,1740097850215,-1226.4,0.00014438,2]
[353859019,1740097850224,-500.0,0.00014438,2]
[353859020,1740097850234,-500.0,0.00014438,2]
[353859021,1740097850243,-631.47,0.00014438,2]
[353859022,1740097850254,-616.91,0.00014438,2]
[353859023,1740097850265,-500.0,0.00014438,2]
[353859024,1740097850276,-757.01,0.00014438,2]
[353859025,1740097850286,-612.09,0.00014438,2]
[353859026,1740097850298,-1173.26,0.00014438,2]
[353859027,1740097850308,-192.8,0.00014438,2]
[353859028,1740097850392,-192.8,0.00014438,2]
[353859029,1740097850410,-500.0,0.00014438,2]
[353859030,1740097850420,-571.2,0.00014438,2]
[353859031,1740097850430,-500.0,0.00014438,2]
[353859032,1740097850439,-863.93,0.00014438,2]
[353859033,1740097850449,-500.0,0.00014438,2]
[353859034,1740097850459,-500.0,0.00014438,2]
[353859035,1740097850469,-500.0,0.00014438,2]
[353859036,1740097850478,-773.51,0.00014438,2]
[353859037,1740097850487,-500.0,0.00014438,2]
[353859038,1740097850497,-500.0,0.00014438,2]
[353859039,1740097850507,-563.79,0.00014438,2]
[353859040,1740097850516,-152.0,0.00014438,2]
[353859041,1740097850526,-500.0,0.00014438,2]
[353859042,1740097850535,-870.26,0.00014438,2]
[353859043,1740097850545,-500.0,0.00014438,2]
[353859044,1740097850554,-500.0,0.00014438,2]
[353859045,1740097850564,-500.0,0.00014438,2]
[353859046,1740097850574,-500.0,0.00014438,2]
[353859047,1740097850583,-500.0,0.00014438,2]
[353859048,1740097850593,-2965.2,0.00014438,2]
[353859049,1740097850603,-500.0,0.00014438,2]
[353859050,1740097850613,-7407.22,0.00014438,2]
[353859051,1740097850623,-1424.63,0.00014438,2]
[353859052,1740097850633,-1126.5,0.00014438,2]
[353859053,1740097850643,-1088.81,0.00014438,2]
[353859054,1740097850653,-3319.91,0.00014438,2]
[353859055,1740097850662,-13071.21,0.00014438,2]
[353859056,1740097850672,-500.0,0.00014438,2]
[353859057,1740097850683,-500.0,0.00014438,2]
[353859058,1740097850692,-36691.61,0.00014438,2]
[353859059,1740097850703,-757.95,0.00014438,2]
[353859060,1740097850712,-2493.87,0.00014438,2]
[353859061,1740097850722,-1170.19,0.00014438,2]
[353859062,1740097850732,-1893.62,0.00014438,2]
[353859063,1740097850742,-1493.72,0.00014438,2]
[353859064,1740097850751,-3206.01,0.00014438,2]
[353859065,1740097850761,-619.03,0.00014438,2]
[353859066,1740097850772,-1288.47,0.00014438,2]
[353859067,1740097850783,-6326.14,0.00014438,2]
[353859068,1740097850793,-1250.47,0.00014438,2]
[353859069,1740097850803,-500.0,0.00014438,2]
[353859070,1740097850813,-530.98,0.00014438,2]
[353859071,1740097850823,-500.0,0.00014438,2]
[353859072,1740097850837,-3591.47,0.00014438,2]
[353859073,1740097850847,-500.0,0.00014438,2]
[353859074,1740097850857,-1996.0,0.00014438,2]
[353859075,1740097850867,-3522.52,0.00014438,2]
[353859076,1740097850878,-584.09,0.00014438,2]
[353859077,1740097850887,-1282.81,0.00014438,2]
[353859078,1740097850897,-500.0,0.00014438,2]
[353859079,1740097850907,-682.12,0.00014438,2]
[353859080,1740097850917,-1084.12,0.00014438,2]
[353859081,1740097850926,-2053.02,0.00014438,2]
[353859082,1740097850936,-500.0,0.00014438,2]
[353859083,1740097850945,-657.23,0.00014438,2]
[353859084,1740097850954,-855.35,0.00014438,2]
[353859085,1740097850968,-2085.88,0.00014438,2]
[353859086,1740097850977,-2400.28,0.00014438,2]
[353859087,1740097850987,-550.36,0.00014438,2]
[353859088,1740097850997,-500.0,0.00014438,2]
[353859089,1740097851007,-755.6,0.00014438,2]
[353859090,1740097851018,-500.0,0.00014438,2]
[353859091,1740097851028,-2528.55,0.00014438,2]
[353859092,1740097851038,-5873.51,0.00014438,2]
[353859093,1740097851047,-1871.42,0.00014438,2]
[353859094,1740097851057,-17350.12,0.00014438,2]
[353859095,1740097851067,-500.0,0.00014438,2]
[353859096,1740097851076,-873.49,0.00014438,2]
[353859097,1740097851086,-500.0,0.00014438,2]
[353859098,1740097851096,-500.0,0.00014438,2]
[353859099,1740097851106,-500.0,0.00014438,2]
[353859100,1740097851115,-567.85,0.00014438,2]
[353859101,1740097851124,-2112.09,0.00014438,2]
[353859102,1740097851134,-500.0,0.00014438,2]
[353859103,1740097851144,-528.95,0.00014438,2]
[353859104,1740097851153,-2172.75,0.00014438,2]
[353859105,1740097851163,-500.0,0.00014438,2]
[353859106,1740097851173,-1606.58,0.00014438,2]
[353859107,1740097851183,-160.0,0.00014461,3]
[353859108,1740097851192,-168.26106217,0.00014493,2]
[353859109,1740097851203,-500.0,0.0001452,2]
[353859110,1740097851212,-512.02,0.0001452,2]
[353859111,1740097851222,-204.22984902,0.0001452,2]
[353859112,1740097851232,-500.0,0.0001452,2]
[353859113,1740097851243,-720.25,0.0001452,2]
[353859114,1740097851252,-924.56,0.0001452,2]
[353859115,1740097851262,-263.35877134,0.0001452,2]
[353859116,1740097851274,-608.05,0.0001452,2]
[353859117,1740097851283,-659.25,0.0001452,2]
[353859118,1740097851293,-1112.77,0.0001452,2]
[353859119,1740097851302,-620.25,0.0001452,2]
[353859120,1740097851311,-575.32,0.0001452,2]
[353859121,1740097851320,-500.0,0.0001452,2]
[353859122,1740097851329,-1226.4,0.0001452,2]
[353859123,1740097851339,-500.0,0.0001452,2]
[353859124,1740097851348,-500.0,0.0001452,2]
[353859125,1740097851357,-631.47,0.0001452,2]
[353859126,1740097851367,-616.91,0.0001452,2]
[353859127,1740097851377,-500.0,0.0001452,2]
[353859128,1740097851386,-757.01,0.0001452,2]
[353859129,1740097851396,-612.09,0.0001452,2]
[353859130,1740097851406,-1173.26,0.0001452,2]
[353859131,1740097851415,-500.0,0.0001452,2]
[353859132,1740097851424,-571.2,0.0001452,2]
[353859133,1740097851434,-863.93,0.0001452,2]
[353859134,1740097851444,-500.0,0.0001452,2]
[353859135,1740097851454,-500.0,0.0001452,2]
[353859136,1740097851464,-500.0,0.0001452,2]
[353859137,1740097851474,-773.51,0.0001452,2]
[353859138,1740097851483,-500.0,0.0001452,2]
[353859139,1740097851493,-500.0,0.0001452,2]
[353859140,1740097851503,-563.79,0.0001452,2]
[353859141,1740097851514,-500.0,0.0001452,2]
[353859142,1740097851528,-870.26,0.0001452,2]
[353859143,1740097851539,-500.0,0.0001452,2]
[353859144,1740097851549,-500.0,0.0001452,2]
[353859145,1740097851559,-500.0,0.0001452,2]
[353859146,1740097851570,-500.0,0.0001452,2]
[353859147,1740097851580,-500.0,0.0001452,2]
[353859148,1740097851590,-2965.2,0.0001452,2]
[353859149,1740097851600,-500.0,0.0001452,2]
[353859150,1740097851611,-7407.22,0.0001452,2]
[353859151,1740097851621,-1424.63,0.0001452,2]
[353859152,1740097851631,-1126.5,0.0001452,2]
[353859153,1740097851640,-1088.81,0.0001452,2]
[353859154,1740097851650,-3319.91,0.0001452,2]
[353859155,1740097851660,-13071.21,0.0001452,2]
[353859156,1740097851670,-500.0,0.0001452,2]
[353859157,1740097851681,-500.0,0.0001452,2]
[353859158,1740097851691,-36691.61,0.0001452,2]
[353859159,1740097851701,-757.95,0.0001452,2]
[353859160,1740097851711,-2493.87,0.0001452,2]
[353859161,1740097851721,-1170.19,0.0001452,2]
[353859162,1740097851731,-1893.62,0.0001452,2]
[353859163,1740097851740,-1493.72,0.0001452,2]
[353859164,1740097851750,-3206.01,0.0001452,2]
[353859165,1740097851760,-619.03,0.0001452,2]
[353859166,1740097851772,-1288.47,0.0001452,2]
[353859167,1740097851782,-6326.14,0.0001452,2]
[353859168,1740097851792,-1250.47,0.0001452,2]
[353859169,1740097851801,-500.0,0.0001452,2]
[353859170,1740097851811,-530.98,0.0001452,2]
[353859171,1740097851821,-500.0,0.0001452,2]
[353859172,1740097851834,-3591.47,0.0001452,2]